fUSD/lending_fUSD_20250416
["ID","MTS","AMOUNT","RATE_DAILY","PERIOD"]
[358183343,1744822242546,-200.0,0.000202,2]
[358183345,1744822242556,-1000.0,0.00020272,2]
[358183347,1744822242565,-200.0,0.00020272,2]
[358183349,1744822242574,-158.75,0.00020272,2]
[358183351,1744822242584,-200.0,0.00020272,2]
[358183353,1744822242593,-204.3,0.00020272,2]
[358183355,1744822242602,-2000.0,0.00020272,2]
[358183357,1744822242611,-20656.92,0.00020548,2]
[358183359,1744822242621,-217.49,0.00020554,2]
[358183361,1744822242630,-21883.12353734,0.000207,2]
[358183363,1744822242639,-151.0,0.000207,2]
[358183364,1744822242649,-171.262476,0.000207,2]
[358183367,1744822242658,-171.262476,0.000207,2]
[358183369,1744822242668,-151.0,0.000207,2]
[358183370,1744822242678,-151.0,0.000207,2]
[358183373,1744822242687,-1916.457691,0.000207,2]
[358183374,1744822242696,-151.0,0.000207,2]
[358183376,1744822242705,-1916.457691,0.000207,2]
[358183378,1744822242715,-151.0,0.000207,2]
[358183380,1744822242724,-151.0,0.000207,2]
[358183382,1744822242733,-151.0,0.000207,2]
[358183385,1744822242742,-151.0,0.000207,2]
[358183387,1744822242752,-151.0,0.000207,2]
[358183390,1744822242761,-151.0,0.000207,2]
[358183393,1744822242770,-151.0,0.000207,2]
[358183397,1744822242780,-151.0,0.000207,2]
[358183399,1744822242789,-151.0,0.000207,2]
[358183402,1744822242798,-155.514912,0.000207,2]
[358183405,1744822242807,-151.0,0.000207,2]
[358183408,1744822242816,-151.0,0.000207,2]
[358183410,1744822242826,-194.473494,0.000207,2]
[358183412,1744822242835,-151.0,0.000207,2]
[358183414,1744822242844,-194.473494,0.000207,2]
[358183417,1744822242858,-282.489715,0.000207,2]
[358183422,1744822242867,-151.0,0.000207,2]
[358183426,1744822242877,-151.0,0.000207,2]
[358183429,1744822242887,-151.0,0.000207,2]
[358183432,1744822242898,-161.753088,0.000207,2]
[358183436,1744822242907,-221.280761,0.000207,2]
[358183440,1744822242916,-221.280761,0.000207,2]
[358183444,1744822242926,-151.0,0.000207,2]
[358183448,1744822242936,-151.0,0.000207,2]
[358183452,1744822242946,-151.0,0.000207,2]
[358183456,1744822242956,-452.935134,0.000207,2]
[358183460,1744822242966,-452.935134,0.000207,2]
[358183464,1744822242976,-152.335378,0.000207,2]
[358183466,1744822242985,-152.335378,0.000207,2]
[358183468,1744822242994,-151.0,0.000207,2]
[358183470,1744822243004,-151.0,0.000207,2]
[358183472,1744822243013,-151.0,0.000207,2]
[358183474,1744822243023,-168.69,0.0002088,2]
[358183476,1744822243032,-20000.0,0.00021,2]
[358183478,1744822243042,-190.89698586,0.00021,2]
[358183480,1744822243052,-1152.69032256,0.00021,2]
[358183482,1744822243062,-190.24581768,0.00021,2]
[358183484,1744822243072,-350.0,0.00021,2]
[358183486,1744822243082,-151.0,0.00021,2]
[358183488,1744822243091,-151.0,0.00021,2]
[358183490,1744822243101,-151.0,0.00021,2]
[358183492,1744822243112,-151.0,0.00021,2]
[358183494,1744822243122,-151.0,0.00021,2]
[358183496,1744822243132,-151.0,0.00021,2]
[358183498,1744822243141,-151.0,0.00021,2]
[358183500,1744822243151,-174.604601,0.00021,2]
[358183502,1744822243161,-151.0,0.00021,2]
[358183504,1744822243170,-151.0,0.00021,2]
[358183506,1744822243180,-151.0,0.00021,2]
[358183508,1744822243189,-151.0,0.00021,2]
[358183510,1744822243198,-151.0,0.00021,2]
[358183512,1744822243208,-292.792633,0.00021,2]
[358183514,1744822243217,-151.0,0.00021,2]
[358183516,1744822243227,-156.964163,0.00021,2]
[358183518,1744822243236,-151.0,0.00021,2]
[358183520,1744822243246,-151.0,0.00021,2]
[358183521,1744822243255,-154.960357,0.00021,2]
[358183522,1744822243264,-151.0,0.00021,2]
[358183523,1744822243274,-167.963257,0.00021,2]
[358183524,1744822243284,-151.0,0.00021,2]
[358183525,1744822243293,-151.0,0.00021,2]
[358183526,1744822243303,-151.0,0.00021,2]
[358183527,1744822243313,-151.0,0.00021,2]
[358183528,1744822243322,-151.0,0.00021,2]
[358183529,1744822243332,-151.0,0.00021,2]
[358183530,1744822243341,-256.8305,0.00021,2]
[358183531,1744822243351,-256.8305,0.00021,2]
[358183532,1744822243361,-362.794033,0.00021,2]
[358183533,1744822243371,-362.794033,0.00021,2]
[358183534,1744822243380,-151.0,0.00021,2]
[358183535,1744822243390,-151.0,0.00021,2]
[358183536,1744822243400,-165.81,0.0002117,2]
[358183537,1744822243409,-5101.19,0.0002137,2]
[358183538,1744822243419,-300.0,0.00021642,2]
[358183539,1744822243428,-7300.86688288,0.000217,2]
[358183540,1744822243438,-305.98,0.00021799,2]
[358183541,1744822243447,-301.78,0.00021799,2]
[358183542,1744822243456,-304.96,0.00021799,2]
[358183543,1744822243467,-5434.0,0.000218,2]
[358183544,1744822243476,-351.8,0.00021857,2]
[358183545,1744822243486,-529.1,0.00021917,2]
[358183546,1744822243496,-168.55,0.00021918,2]
[358183547,1744822243505,-151.0,0.00021918,2]
[358183548,1744822243514,-151.0,0.00021918,2]
[358183549,1744822243524,-151.0,0.00021918,2]
[358183550,1744822243534,-247.31639178,0.00022,2]
[358183551,1744822243543,-500.0,0.00022,2]
[358183552,1744822243552,-231.77100388,0.0002211,2]
[358183553,1744822243562,-1000.0,0.00022466,2]
[358183554,1744822243571,-1000.0,0.00022466,2]
[358183555,1744822243581,-1000.0,0.00022466,2]
[358183556,1744822243590,-1000.0,0.00022466,2]
[358183557,1744822243599,-1000.0,0.00022466,2]
[358183558,1744822243609,-1000.0,0.00022466,2]
[358183559,1744822243618,-1000.0,0.00022466,2]
[358183561,1744822243627,-1690.12554306,0.00022466,2]
[358183562,1744822243637,-34198.24488165,0.000225,2]
[358183564,1744822243647,-291.593576,0.000225,7]
[358183566,1744822243657,-151.0,0.000225,7]
[358183568,1744822243666,-151.0,0.000225,7]
[358183570,1744822243675,-151.0,0.000225,7]
[358183572,1744822243685,-151.0,0.000225,7]
[358183574,1744822243694,-151.0,0.000225,7]
[358183575,1744822243703,-151.0,0.000225,7]
[358183577,1744822243713,-151.0,0.000225,7]
[358183579,1744822243722,-151.0,0.000225,7]
[358183581,1744822243731,-194.473494,0.000225,7]
[358183583,1744822243741,-151.0,0.000225,7]
[358183585,1744822243750,-194.473494,0.000225,7]
[358183587,1744822243760,-151.0,0.000225,7]
[358183589,1744822243769,-151.0,0.000225,7]
[358183591,1744822243779,-151.0,0.000225,7]
[358183592,1744822243788,-221.280761,0.000225,7]
[358183594,1744822243798,-221.280761,0.000225,7]
[358183596,1744822243807,-151.0,0.000225,7]
[358183598,1744822243817,-206.54414,0.000225,7]
[358183599,1744822243826,-151.0,0.000225,7]
[358183600,1744822243835,-452.935134,0.000225,7]
[358183601,1744822243845,-452.935134,0.000225,7]
[358183602,1744822243856,-152.335378,0.000225,7]
[358183603,1744822243865,-152.335378,0.000225,7]
[358183604,1744822243874,-151.0,0.000225,7]
[358183605,1744822243884,-151.937872,0.000225,7]
[358183606,1744822243895,-151.0,0.000225,7]
[358183607,1744822243904,-504.48802673,0.0002271,2]
[358183608,1744822243913,-151.0,0.00022806,7]
[358183609,1744822243923,-1916.457691,0.00022806,7]
[358183610,1744822243933,-151.0,0.00022806,7]
[358183611,1744822243942,-1916.457691,0.00022806,7]
[358183612,1744822243952,-151.0,0.00022806,7]
[358183613,1744822243962,-151.0,0.00022806,7]
[358183614,1744822243971,-1000.0,0.00022806,2]
[358183615,1744822243981,-400.0,0.00023,2]
[358183616,1744822243991,-151.0,0.00023,7]
[358183617,1744822244000,-171.262476,0.00023,7]
[358183618,1744822244010,-171.262476,0.00023,7]
[358183619,1744822244019,-151.0,0.00023,7]
[358183620,1744822244028,-200.0,0.00023,2]
[358183621,1744822244038,-402.7079984,0.0002301,2]
[358183622,1744822244047,-300.0,0.00023012,2]
[358183623,1744822244057,-50287.41891816,0.000232,2]
[358183624,1744822244066,-151.923317,0.000232,7]
[358183625,1744822244075,-153.434265,0.000232,7]
[358183626,1744822244085,-151.0,0.000232,7]
[358183627,1744822244094,-151.0,0.000232,7]
[358183628,1744822244103,-151.0,0.000232,7]
[358183629,1744822244113,-151.0,0.000232,7]
[358183630,1744822244122,-151.0,0.000232,7]
[358183631,1744822244132,-151.0,0.000232,7]
[358183632,1744822244142,-151.0,0.000232,7]
[358183633,1744822244151,-151.0,0.000232,7]
[358183634,1744822244160,-151.0,0.000232,7]
[358183635,1744822244169,-163.832518,0.000232,7]
[358183636,1744822244179,-151.0,0.000232,7]
[358183637,1744822244188,-151.0,0.000232,7]
[358183638,1744822244198,-151.0,0.000232,7]
[358183639,1744822244207,-151.0,0.000232,7]
[358183640,1744822244217,-151.0,0.000232,7]
[358183641,1744822244226,-151.0,0.000232,7]
[358183642,1744822244235,-155.389418,0.000232,7]
[358183643,1744822244244,-151.0,0.000232,7]
[358183644,1744822244254,-151.0,0.000232,7]
[358183645,1744822244263,-151.0,0.000232,7]
[358183646,1744822244273,-151.0,0.000232,7]
[358183647,1744822244282,-256.8305,0.000232,7]
[358183649,1744822244291,-256.8305,0.000232,7]
[358183651,1744822244300,-362.794033,0.000232,7]
[358183652,1744822244310,-362.794033,0.000232,7]
[358183653,1744822244319,-151.0,0.000232,7]
[358183654,1744822244328,-154.332368,0.000232,7]
[358183655,1744822244337,-529.1,0.00023287,2]
[358183656,1744822244347,-200.0,0.000235,2]
[358183657,1744822244358,-206.89,0.00023836,2]
[358183658,1744822244367,-59530.172341,0.00024,2]
[358183659,1744822244376,-983.72707361,0.00024,2]
[358183660,1744822244386,-81136.51419714,0.00024,2]
[358183661,1744822244395,-151.0,0.00024,7]
[358183662,1744822244448,-151.0,0.00024,7]
[358183663,1744822244457,-151.0,0.00024,7]
[358183664,1744822244467,-154.910886,0.00024,7]
[358183665,1744822244476,-151.0,0.00024,7]
[358183666,1744822244486,-151.0,0.00024,7]
[358183667,1744822244497,-151.0,0.00024,7]
[358183668,1744822244506,-151.0,0.00024,7]
[358183669,1744822244515,-231.267171,0.00024,7]
[358183670,1744822244524,-151.0,0.00024,7]
[358183671,1744822244533,-151.0,0.00024,7]
[358183672,1744822244542,-237.773178,0.00024,7]
[358183673,1744822244552,-153.415886,0.00024,7]
[358183674,1744822244561,-151.0,0.00024,7]
[358183675,1744822244570,-151.0,0.00024,7]
[358183676,1744822244579,-151.0,0.00024,7]
[358183677,1744822244588,-151.0,0.00024,7]
[358183678,1744822244598,-256.8305,0.00024,7]
[358183679,1744822244607,-256.8305,0.00024,7]
[358183680,1744822244617,-362.794033,0.00024,7]
[358183681,1744822244626,-171.262476,0.00024,7]
[358183682,1744822244635,-362.794033,0.00024,7]
[358183683,1744822244644,-171.262476,0.00024,7]
[358183684,1744822244654,-151.0,0.00024,7]
[358183685,1744822244663,-151.0,0.00024,7]
[358183686,1744822244673,-1916.457691,0.00024,7]
[358183687,1744822244682,-151.0,0.00024,7]
[358183688,1744822244691,-1916.457691,0.00024,7]
[358183689,1744822244700,-151.0,0.00024,7]
[358183690,1744822244709,-151.0,0.00024,7]
[358183691,1744822244720,-151.0,0.00024,7]
[358183692,1744822244729,-151.0,0.00024,7]
[358183693,1744822244738,-151.0,0.00024,7]
[358183694,1744822244747,-151.0,0.00024,7]
[358183695,1744822244756,-151.0,0.00024,7]
[358183696,1744822244765,-151.0,0.00024,7]
[358183697,1744822244774,-151.0,0.00024,7]
[358183698,1744822244783,-151.0,0.00024,7]
[358183699,1744822244793,-194.473494,0.00024,7]
[358183700,1744822244802,-151.0,0.00024,7]
[358183701,1744822244811,-194.473494,0.00024,7]
[358183702,1744822244821,-174.911139,0.00024,7]
[358183703,1744822244830,-151.0,0.00024,7]
[358183704,1744822244839,-171.023108,0.00024,7]
[358183705,1744822244850,-221.280761,0.00024,7]
[358183706,1744822244861,-221.280761,0.00024,7]
[358183707,1744822244870,-151.0,0.00024,7]
[358183708,1744822244879,-2000.0,0.00024,4]
[358183709,1744822244888,-151.0,0.00024,7]
[358183710,1744822244898,-452.935134,0.00024,7]
[358183711,1744822244907,-452.935134,0.00024,7]
[358183712,1744822244916,-152.335378,0.00024,7]
[358183714,1744822244929,-152.335378,0.00024,7]
[358183715,1744822244938,-151.0,0.00024,7]
[358183717,1744822244948,-151.0,0.00024,7]
[358183719,1744822244957,-785.17391456,0.0002402,2]
[358183721,1744822244966,-168.55,0.0002411,2]
[358183723,1744822244976,-351.8,0.00024121,2]
[358183725,1744822244986,-406.48439646,0.0002421,2]
[358183727,1744822244996,-3561.78522992,0.0002421,2]
[358183729,1744822245007,-151.0,0.0002421,7]
[358183731,1744822245017,-191.623127,0.0002421,7]
[358183733,1744822245027,-151.0,0.0002421,7]
[358183735,1744822245036,-195.112908,0.0002421,7]
[358183737,1744822245046,-151.0,0.0002421,7]
[358183739,1744822245055,-151.0,0.0002421,7]
[358183741,1744822245065,-215.350138,0.0002421,7]
[358183743,1744822245074,-151.0,0.0002421,7]
[358183745,1744822245084,-194.473494,0.0002421,7]
[358183746,1744822245094,-151.0,0.0002421,7]
[358183748,1744822245104,-194.473494,0.0002421,7]
[358183750,1744822245113,-151.0,0.0002421,7]
[358183752,1744822245123,-221.280761,0.0002421,7]
[358183754,1744822245132,-221.280761,0.0002421,7]
[358183755,1744822245141,-151.0,0.0002421,7]
[358183756,1744822245151,-151.0,0.0002421,7]
[358183757,1744822245161,-452.935134,0.0002421,7]
[358183758,1744822245171,-452.935134,0.0002421,7]
[358183759,1744822245180,-152.335378,0.0002421,7]
[358183760,1744822245190,-152.335378,0.0002421,7]
[358183761,1744822245199,-151.0,0.0002421,7]
[358183762,1744822245209,-151.0,0.0002421,7]
[358183763,1744822245219,-168.69,0.00024326,2]
[358183764,1744822245228,-15710.70571089,0.00024444,2]
[358183765,1744822245238,-171.262476,0.00024444,7]
[358183766,1744822245248,-171.262476,0.00024444,7]
[358183767,1744822245257,-151.0,0.00024444,7]
[358183768,1744822245267,-1916.457691,0.00024444,7]
[358183769,1744822245277,-151.0,0.00024444,7]
[358183770,1744822245287,-1916.457691,0.00024444,7]
[358183771,1744822245296,-285.63262,0.00024444,7]
[358183772,1744822245305,-529.1,0.00024657,2]
[358183773,1744822245315,-1000.0,0.00024658,2]
[358183774,1744822245324,-151.0,0.000248,7]
[358183775,1744822245334,-151.0,0.000248,7]
[358183776,1744822245343,-151.0,0.000248,7]
[358183777,1744822245353,-151.0,0.000248,7]
[358183778,1744822245362,-151.0,0.000248,7]
[358183779,1744822245371,-151.0,0.000248,7]
[358183780,1744822245381,-151.0,0.000248,7]
[358183781,1744822245391,-151.0,0.000248,7]
[358183782,1744822245400,-151.0,0.000248,7]
[358183783,1744822245409,-151.0,0.000248,7]
[358183784,1744822245418,-151.0,0.000248,7]
[358183785,1744822245428,-189.276561,0.000248,7]
[358183786,1744822245437,-157.168463,0.000248,7]
[358183787,1744822245447,-256.8305,0.000248,7]
[358183788,1744822245456,-256.8305,0.000248,7]
[358183789,1744822245467,-362.794033,0.000248,7]
[358183790,1744822245477,-362.794033,0.000248,7]
[358183791,1744822245487,-171.262476,0.000248,7]
[358183792,1744822245497,-171.262476,0.000248,7]
[358183793,1744822245506,-151.0,0.000248,7]
[358183794,1744822245516,-1916.457691,0.000248,7]
[358183795,1744822245525,-151.0,0.000248,7]
[358183796,1744822245534,-1916.457691,0.000248,7]
[358183797,1744822245543,-151.0,0.000248,7]
[358183798,1744822245553,-151.0,0.000248,7]
[358183799,1744822245562,-151.0,0.000248,7]
[358183800,1744822245572,-178.477561,0.000248,7]
[358183801,1744822245581,-455416.892341,0.000248,3]
[358183802,1744822245590,-151.0,0.000248,7]
[358183803,1744822245599,-151.0,0.000248,7]
[358183804,1744822245609,-194.473494,0.000248,7]
[358183805,1744822245619,-151.0,0.000248,7]
[358183806,1744822245628,-194.473494,0.000248,7]
[358183807,1744822245637,-151.0,0.000248,7]
[358183808,1744822245647,-221.280761,0.000248,7]
[358183809,1744822245656,-221.280761,0.000248,7]
[358183810,1744822245665,-151.0,0.000248,7]
[358183811,1744822245675,-452.935134,0.000248,7]
[358183812,1744822245684,-452.935134,0.000248,7]
[358183813,1744822245693,-152.335378,0.000248,7]
[358183814,1744822245703,-152.335378,0.000248,7]
[358183815,1744822245712,-151.0,0.000248,7]
[358183816,1744822245721,-151.0,0.000248,7]
[358183817,1744822245731,-151.0,0.000249,7]
[358183818,1744822245739,-151.0,0.000249,7]
[358183819,1744822245749,-211.8189,0.000249,7]
[358183820,1744822245758,-151.0,0.000249,7]
[358183821,1744822245767,-151.0,0.000249,7]
[358183822,1744822245778,-151.0,0.000249,7]
[358183823,1744822245788,-152.79,0.000249,2]
[358183824,1744822245797,-152.79,0.000249,2]
[358183825,1744822245807,-151.0,0.000249,7]
[358183826,1744822245816,-1916.457691,0.000249,7]
[358183827,1744822245826,-232.399268,0.000249,7]
[358183828,1744822245834,-1916.457691,0.000249,7]
[358183829,1744822245843,-151.0,0.000249,7]
[358183830,1744822245856,-151.0,0.000249,7]
[358183831,1744822245866,-151.0,0.000249,7]
[358183832,1744822245875,-280.829002,0.000249,7]
[358183833,1744822245884,-194.473494,0.000249,7]
[358183834,1744822245895,-151.0,0.000249,7]
[358183835,1744822245904,-194.473494,0.000249,7]
[358183836,1744822245913,-300.590246,0.000249,7]
[358183837,1744822245922,-221.280761,0.000249,7]
[358183838,1744822245932,-221.280761,0.000249,7]
[358183839,1744822245941,-3790.65085568,0.000249,2]
[358183840,1744822245950,-452.935134,0.000249,7]
[358183841,1744822245959,-452.935134,0.000249,7]
[358183842,1744822245969,-152.335378,0.000249,7]
[358183843,1744822245978,-152.335378,0.000249,7]
[358183844,1744822245988,-62883.68971872,0.00024999,2]
[358183845,1744822245997,-156.091119,0.00024999,7]
[358183846,1744822246006,-171.736552,0.00024999,7]
[358183847,1744822246015,-151.0,0.00024999,7]
[358183848,1744822246024,-100600.60220689,0.00025,2]
[358183849,1744822246033,-199.99950715,0.00025,2]
[358183850,1744822246043,-1604.21266429,0.00025,2]
[358183851,1744822246052,-256.48283672,0.00025,2]
[358183852,1744822246061,-254.17823867,0.00025,2]
[358183853,1744822246070,-200.0,0.00025,2]
[358183854,1744822246079,-2932.14303102,0.00025,2]
[358183855,1744822246088,-1759.44015183,0.00025,2]
[358183856,1744822246097,-1025.8752455,0.00025,2]
[358183857,1744822246106,-161.22457411,0.00025,2]
[358183858,1744822246115,-46094.94667261,0.00025,2]
[358183859,1744822246124,-153.671052,0.00025,7]
[358183860,1744822246133,-151.0,0.00025,7]
[358183861,1744822246143,-151.0,0.00025,7]
[358183862,1744822246152,-151.0,0.00025,7]
[358183863,1744822246161,-151.0,0.00025,7]
[358183864,1744822246170,-151.0,0.00025,7]
[358183865,1744822246179,-151.0,0.00025,7]
[358183866,1744822246188,-197.79648,0.00025,7]
[358183867,1744822246198,-256.8305,0.00025,7]
[358183868,1744822246208,-256.8305,0.00025,7]
[358183869,1744822246218,-362.794033,0.00025,7]
[358183870,1744822246228,-362.794033,0.00025,7]
[358183871,1744822246237,-171.262476,0.00025,7]
[358183872,1744822246247,-171.262476,0.00025,7]
[358183873,1744822246256,-151.0,0.00025,7]
[358183874,1744822246265,-1916.457691,0.00025,7]
[358183875,1744822246274,-1916.457691,0.00025,7]
[358183876,1744822246283,-151.0,0.00025,7]
[358183877,1744822246292,-151.0,0.00025,7]
[358183878,1744822246301,-151.0,0.00025,7]
[358183879,1744822246311,-194.473494,0.00025,7]
[358183880,1744822246320,-151.0,0.00025,7]
[358183881,1744822246329,-194.473494,0.00025,7]
[358183882,1744822246338,-221.280761,0.00025,7]
[358183883,1744822246347,-221.280761,0.00025,7]
[358183884,1744822246357,-258.155521,0.00025,7]
[358183885,1744822246367,-452.935134,0.00025,7]
[358183886,1744822246375,-452.935134,0.00025,7]
[358183887,1744822246385,-152.335378,0.00025,7]
[358183888,1744822246393,-152.335378,0.00025,7]
[358183889,1744822246403,-221.589049,0.00025,7]
[358183890,1744822246412,-200.0,0.000251,2]
[358183891,1744822246422,-3256.49783578,0.000251,2]
[358183893,1744822246431,-280.0,0.000253,10]
[358183895,1744822246440,-1000.0,0.0002534,2]
[358183897,1744822246449,-577.95312744,0.0002599,2]
[358183899,1744822246459,-4353.83288684,0.00026,2]
[358183901,1744822246468,-4433.65,0.00026,2]
[358183903,1744822246477,-3059.95839919,0.00026,2]
[358183905,1744822246486,-529.1,0.00026027,2]
[358183907,1744822246495,-168.55,0.00026301,2]
[358183908,1744822246504,-351.8,0.00026385,2]
[358183910,1744822246513,-26442.64571943,0.000264,2]
[358183911,1744822246522,-151.0,0.000264,7]
[358183913,1744822246531,-167.576229,0.000264,7]
[358183915,1744822246540,-151.0,0.000264,7]
[358183917,1744822246549,-151.0,0.000264,7]
[358183919,1744822246559,-256.8305,0.000264,7]
[358183921,1744822246567,-256.8305,0.000264,7]
[358183923,1744822246577,-362.794033,0.000264,7]
[358183925,1744822246586,-362.794033,0.000264,7]
[358183927,1744822246594,-171.262476,0.000264,7]
[358183929,1744822246603,-171.262476,0.000264,7]
[358183931,1744822246613,-151.0,0.000264,7]
[358183933,1744822246621,-1916.457691,0.000264,7]
[358183935,1744822246630,-1916.457688,0.000264,7]
[358183936,1744822246639,-151.0,0.000264,7]
[358183938,1744822246648,-151.0,0.000264,7]
[358183940,1744822246657,-151.0,0.000264,7]
[358183942,1744822246666,-194.473494,0.000264,7]
[358183944,1744822246675,-151.0,0.000264,7]
[358183946,1744822246684,-194.473492,0.000264,7]
[358183948,1744822246693,-221.280761,0.000264,7]
[358183950,1744822246704,-221.280757,0.000264,7]
[358183951,1744822246714,-452.935134,0.000264,7]
[358183953,1744822246723,-452.935138,0.000264,7]
[358183955,1744822246732,-152.335378,0.000264,7]
[358183957,1744822246741,-152.335386,0.000264,7]
[358183959,1744822246751,-1724.53,0.000265,2]
[358183961,1744822246760,-250.0,0.00027,2]
[358183963,1744822246769,-996.83759959,0.00027,2]
[358183965,1744822246778,-514.21,0.00027272,2]
[358183967,1744822246787,-529.1,0.00027397,2]
[358183969,1744822246796,-498.44,0.00027397,2]
[358183971,1744822246805,-425.01,0.00027425,30]
[358183973,1744822246814,-193.62826802,0.000275,2]
[358183974,1744822246823,-391.0,0.0002783,15]
[358183976,1744822246832,-1000.0,0.00027874,2]
[358183978,1744822246842,-162.27580465,0.00028,60]
[358183980,1744822246854,-25407.22107692,0.00028,2]
[358183982,1744822246863,-508.14442154,0.00028,2]
[358183984,1744822246873,-2000.0,0.00028,4]
[358183986,1744822246882,-168.55,0.00028493,2]
[358183988,1744822246892,-351.8,0.00028649,2]
[358183990,1744822246903,-529.1,0.00028767,2]
[358183992,1744822246912,-64680.79477815,0.00029,2]
[358183994,1744822246923,-54785.10644693,0.00029,2]
[358183996,1744822246933,-151.0,0.00029,7]
[358183998,1744822246943,-151.0,0.00029,7]
[358184000,1744822246952,-151.0,0.00029,7]
[358184002,1744822246962,-256.8305,0.00029,7]
[358184004,1744822246972,-256.8305,0.00029,7]
[358184006,1744822246981,-362.794033,0.00029,7]
[358184008,1744822246990,-362.794033,0.00029,7]
[358184010,1744822246999,-171.262476,0.00029,7]
[358184012,1744822247008,-171.262476,0.00029,7]
[358184013,1744822247018,-151.0,0.00029,7]
[358184015,1744822247027,-4717.6488945,0.00029848,2]
[358184018,1744822247037,-151.0,0.00029899,7]
[358184020,1744822247047,-151.0,0.00029899,7]
[358184022,1744822247057,-151.0,0.00029899,7]
[358184024,1744822247067,-256.8305,0.00029899,7]
[358184025,1744822247077,-256.8305,0.00029899,7]
[358184027,1744822247086,-362.794033,0.00029899,7]
[358184029,1744822247096,-362.794039,0.00029899,7]
[358184031,1744822247106,-75662.30754248,0.000299,2]
[358184034,1744822247116,-3790.65085568,0.000299,2]
[358184035,1744822247126,-13653.78022701,0.0002991,2]
[358184037,1744822247135,-228.6989659,0.0002999,2]
[358184039,1744822247144,-402.74299025,0.0003,120]
[358184041,1744822247154,-191732.50084313,0.0003,2]
[358184043,1744822247163,-206106.97956982,0.0003,2]
[358184045,1744822247172,-1748.96677845,0.0003,2]
[358184047,1744822247182,-194.2,0.0003,2]
[358184049,1744822247191,-4300.0,0.0003,2]
[358184051,1744822247202,-160.51788401,0.0003,2]
[358184053,1744822247211,-105965.61836765,0.0003,2]
[358184055,1744822247221,-151.0,0.0003,7]
[358184056,1744822247230,-347.68556848,0.0003,2]
[358184058,1744822247239,-599.62,0.0003,2]
[358184060,1744822247249,-529.1,0.00030136,2]
[358184062,1744822247258,-151.0,0.00030137,7]
[358184064,1744822247268,-588.3,0.00030137,2]
[358184066,1744822247278,-1000.0,0.00030408,2]
[358184068,1744822247287,-764.4827,0.00030488,30]
[358184070,1744822247297,-645.51551168,0.00030613,30]
[358184072,1744822247306,-168.55,0.00030685,2]
[358184074,1744822247316,-351.8,0.00030913,2]